Cogmind - Beta 9.6 --- EXPLORER MODE // 2020.05.23 @ 22:38:45 // Halloween2019/Abominations Player: hemo Result: Destroyed by Lesser Abomination with Etherial Claws Performance ------------- Evolutions (1) 500 Regions Visited (2) 400 Robots Destroyed (18) 90 Value Destroyed (836) 836 Prototype IDs (5) 100 Alien Tech Used (0) 0 Bonus (0) 0 TOTAL SCORE: 1926 Bonus ------- None Cogmind --------- Core Integrity 0/400 Matter 275/300 Energy 28/100 System Corruption 0% Temperature Cool (0) Movement Rolling (120) Ox2 Location -9/Materials Parts ------- > --- POWER (1) -------- (None) > --- PROPULSION (2) --- Compact Wheel > --- UTILITY (5) ------ Disposable Heat Sink High-capacity Storage Unit Seismic Analyzer Propulsion Shielding > --- WEAPON (2) ------- (None) > --- INVENTORY (12) --- Aluminum Leg Heat Sink Improved Terrain Scanner ECM Suite Peak State ------------ > --- POWER ------------ Heavy Ion Engine > --- PROPULSION ------- Wheel Armored Wheel > --- UTILITY ---------- High-capacity Storage Unit Sensor Array Improved Terrain Scanner Seismic Analyzer Weapon Shielding > --- WEAPON ----------- Particle Gun Maul > --- INVENTORY -------- Light Ion Engine Aluminum Leg Compact Wheel Heat Sink Disposable Heat Sink Improved Terrain Scanner ECM Suite Propulsion Shielding [Rating: 17] Favorites ----------- Power Light Ion Engine Engine Light Ion Engine Propulsion Wheel Wheel Wheel Utility High-capacity Storage Unit Device Improved Terrain Scanner Storage High-capacity Storage Unit Processor Seismic Analyzer Protection Weapon Shielding Weapon Assault Rifle Energy Gun Particle Gun Energy Cannon Light EM Pulse Cannon Ballistic Gun Assault Rifle Impact Weapon Maul Build | -11 -10 -9 ------- Run | Scr Mat Mat Slots Evolved 3 | . 1 2 Power . | . . . Propulsion . | . . . Utility 3 | . 1 2 Weapon . | . . . Parts Attached 38 | 6 16 16 Power 5 | 1 1 3 Engine 5 | 1 1 3 Core . | . . . Reactor . | . . . Propulsion 10 | 2 5 3 Treads . | . . . Leg . | . . . Wheel 10 | 2 5 3 Hover . | . . . Flight . | . . . Utility 11 | 2 4 5 Device 6 | 1 2 3 Storage 2 | 1 1 . Processor 1 | . . 1 Hackware . | . . . Protection 2 | . 1 1 Artifact . | . . . Weapon 12 | 1 6 5 Energy Gun 1 | . . 1 Energy Cannon 1 | . . 1 Ballistic Gun 8 | 1 6 1 Ballistic Cannon . | . . . Launcher . | . . . Special Weapon . | . . . Impact Weapon 2 | . . 2 Slashing Weapon . | . . . Piercing Weapon . | . . . Special Melee Weapon . | . . . Unidentified Prototypes . | . . . Parts Lost 21 | . 4 17 Power 4 | . 1 3 Propulsion 5 | . 1 4 Utility 4 | . . 4 Weapon 8 | . 2 6 Highest Loss Streak 11 | . 4 11 Average Slot Usage (%) 93 | . 96 90 Engine 10 | . 11 8 Wheel 21 | . 24 16 Device 20 | . 21 18 Storage 11 | . 12 10 Processor 3 | . . 9 Protection 4 | . 2 8 Energy Gun 1 | . . 3 Ballistic Gun 19 | . 23 13 Naked Turns . | . . . Heaviest Build 49 | 14 42 49 Greatest Support 22 | 20 22 22 Greatest Overweight (x) 2 | 1 2 2 Average Overweight (x) 1 | . . 1 Largest Inventory Capacity 12 | 8 12 12 Average Capacity 10 | 7 10 12 Most Carried 12 | 8 12 11 Average Carried 8 | 1 9 9 Final Capacity 12 | 8 12 12 Final Carried 10 | 8 10 4 Class Distribution -------------------- 87% | Hacker-Mutant 12% | Scavenger-Skirmisher Dominant Class ---------------- Hacker-Mutant | -10/Materials Hacker-Mutant | -9/Materials Resources | -11 -10 -9 ----------- Run | Scr Mat Mat Matter Collected 818 | 292 254 272 Remotely . | . . . Salvage Created 763 | 94 289 380 Parts 78 | 10 16 52 Haulers Intercepted 1 | . 1 . Recyclers Shooed . | . . . Parts Field Recycled . | . . . Retrieved Matter . | . . . Parts Self-Destructed . | . . . Prevented . | . . . Kills | -11 -10 -9 ------- Run | Scr Mat Mat Combat Hostiles Destroyed 14 | . 5 9 Melee 1 | . . 1 Guns 13 | . 5 8 Classes Destroyed 5 | 2 2 1 Tunneler 2 | 2 . . Hauler 1 | . 1 . Recycler 1 | 1 . . Grunt 1 | . . 1 Abomination 13 | . 5 8 Best Kill Streak 4 | 2 2 4 Combat Bots Only 4 | . 2 4 Max Kills in Single Turn 2 | 1 1 2 Gunslinging 1 | . . 1 Exploded . | . . . Melee 1 | . . 1 Uniques/NPCs Destroyed . | . . . Combat | -11 -10 -9 -------- Run | Scr Mat Mat Damage Taken 2204 | . 647 1557 Core 608 | . 188 420 Absorbed by Shields . | . . . Core Remaining (%) 62 | 100 24 . Volleys Fired 91 | 12 29 50 Largest 2 | 1 2 2 Hottest 121 | 20 43 121 Shots Fired 150 | 12 44 94 Gun 147 | 12 44 91 Cannon 3 | . . 3 Launcher . | . . . Special . | . . . Kinetic 132 | 12 44 76 Thermal 15 | . . 15 Explosive . | . . . Electromagnetic 3 | . . 3 Robot Hit Streak 40 | 12 14 40 Robot Miss Streak 2 | . 2 1 Penetration Max . | . . . Secondary Targets 2 | . . 2 Max Gunslinging Chain 1 | . . 1 Shots Hit Robots 139 | 12 35 92 Core Hits 40 | 4 17 19 Critical Hits 1 | . 1 . Critical Kills 1 | . 1 . Critical Parts Destroyed . | . . . Melee Attacks 5 | . . 5 Impact 5 | . . 5 Slashing . | . . . Piercing . | . . . Sneak Attacks . | . . . Combat Hostiles . | . . . Follow-up Attacks . | . . . Damage Inflicted 1740 | 151 426 1163 Guns 1609 | 151 426 1032 Cannons 14 | . . 14 Explosions . | . . . Melee 117 | . . 117 Ramming . | . . . Kinetic 1379 | 151 426 802 Thermal 230 | . . 230 Explosive . | . . . Electromagnetic 14 | . . 14 Impact 117 | . . 117 Slashing . | . . . Piercing . | . . . Highest Corruption . | . . . Average Corruption . | . . . Corruption Purged . | . . . Overload Shots . | . . . Overflow Damage 20 | . . 20 Projectiles . | . . . Explosions . | . . . Melee 20 | . . 20 Knockbacks 2 | . . 2 Impact 2 | . . 2 Kinetic . | . . . Secondary . | . . . Self-Inflicted Damage . | . . . Shots . | . . . Rammed . | . . . Targets Rammed . | . . . Kicked . | . . . Crushed . | . . . Highest Temperature 375 | . . 375 Average Temperature 190 | . . 190 Received Heat Transfer 189 | . 18 171 Effects 1 | . . 1 Energy Bleed 1 | . . 1 Siege Activations . | . . . Robots Corrupted . | . . . Combat Hostiles . | . . . Parts Fried . | . . . Impact Corruptions 2 | . . 2 Robots Melted . | . . . Combat Hostiles . | . . . Parts Melted . | . . . Heat Transferred 108 | . . 108 Parts Sabotaged . | . . . Parts Stolen . | . . . Parts Stripped . | . . . Power Chain Reactions . | . . . Missiles Intercepted . | . . . Alert | -11 -10 -9 ------- Run | Scr Mat Mat Peak Influence 52 | 15 52 30 Average Influence 16 | 9 24 7 Maximum Alert Level . | . . . Low Security (%) 100 | 100 100 100 Level 1 . | . . . Level 2 . | . . . Level 3 . | . . . Level 4 . | . . . Level 5 . | . . . High Security . | . . . Max Security . | . . . Squads Dispatched 4 | . 1 3 Investigation . | . . . Extermination . | . . . Reinforcement 2 | . . 2 Assault 2 | . 1 1 Garrison . | . . . Intercept . | . . . Construction Impeded . | . . . Haulers Reinforced . | . . . Stealth | -11 -10 -9 --------- Run | Scr Mat Mat Distress Signals 3 | . . 3 Communications Jammed . | . . . Distress Signals . | . . . Times Spotted 24 | . 13 11 Peak Tracking Total 6 | . 6 5 Tactical Retreats 3 | . 2 1 Traps | -11 -10 -9 ------- Run | Scr Mat Mat Traps Triggered 1 | . 1 . Indirectly . | . . . Trap Hack Attempts . | . . . Triggered . | . . . Disarmed . | . . . Reprogrammed . | . . . Reused . | . . . Traps Extracted . | . . . Installed . | . . . Triggered . | . . . Machines | -11 -10 -9 ---------- Run | Scr Mat Mat Machines Disabled . | . . . Max in Single Turn . | . . . Machines Sabotaged . | . . . Garrisons Compromised . | . . . Overloaded Fab Kills . | . . . Fab Network Shutdowns . | . . . Hacking | -11 -10 -9 --------- Run | Scr Mat Mat Machines Accessed 12 | . 9 3 Terminals 9 | . 8 1 Fabricators . | . . . Repair Stations . | . . . Recycling Units 1 | . 1 . Scanalyzers 2 | . . 2 Garrison Access . | . . . Total Hacks 57 | . 37 20 Successful 46 | . 30 16 Failed 11 | . 7 4 Catastrophic . | . . . Database Lockouts . | . . . Manual 40 | . 36 4 Terminals 40 | . 36 4 Fabricators . | . . . Repair Stations . | . . . Recycling Units 1 | . 1 . Scanalyzers 16 | . . 16 Garrison Access . | . . . Terminal Hacks 22 | . 22 . Part Schematic 3 | . 3 . Robot Schematic 2 | . 2 . Robot Analysis 13 | . 13 . Prototype ID Bank 3 | . 3 . Hauler Manifests 1 | . 1 . Fabricator Hacks . | . . . Repair Station Hacks . | . . . Recycling Unit Hacks 1 | . 1 . Retrieve Components 1 | . 1 . Scanalyzer 16 | . . 16 Insert Component 8 | . . 8 Analyze 8 | . . 8 Garrison Access Hacks . | . . . Unauthorized Hacks 7 | . 7 . Terminals 7 | . 7 . Botnet 7 | . 7 . Fabricators . | . . . Repair Stations . | . . . Recycling Units . | . . . Scanalyzers . | . . . Garrison Access . | . . . Data Cores Recovered . | . . . Used . | . . . Hacking Detections 10 | . 8 2 Full Trace Events . | . . . Feedback Events . | . . . Feedback Blocked . | . . . Robot Schematics Acquired 2 | . 2 . Robots Built . | . . . Matter . | . . . Time . | . . . Total Robot Build Rating . | . . . Part Schematics Acquired 11 | . 3 8 Parts Built . | . . . Matter . | . . . Time . | . . . Total Part Build Rating . | . . . Parts Repaired . | . . . Time . | . . . Parts Recycled . | . . . Recycled Matter . | . . . Retrieved Matter . | . . . Retrieved Components 3 | . 3 . Parts Scanalyzed 8 | . . 8 Part Schematics Acquired 8 | . . 8 Parts Damaged 1 | . . 1 Bothacking | -11 -10 -9 ------------ Run | Scr Mat Mat Used RIF Installer . | . . . Robots Hacked . | . . . Non-combat . | . . . Combat . | . . . Robot Hacks Applied . | . . . Relay Couplers Released . | . . . Robots Rewired . | . . . Allies Hacked . | . . . Hacks Repelled . | . . . Allies | -11 -10 -9 -------- Run | Scr Mat Mat Total Allies . | . . . Largest Group . | . . . Highest-Rated Group . | . . . Highest-Rated Ally . | . . . Total Orders . | . . . Ally Attacks . | . . . Total Damage . | . . . Kills . | . . . Allies Corrupted . | . . . Allies Melted . | . . . Intel | -11 -10 -9 ------- Run | Scr Mat Mat Robot Analysis Total 13 | . 13 . Derelict Logs Recovered . | . . . Drone Launches . | . . . Drone Recoveries . | . . . Exploration | -11 -10 -9 ------------- Run | Scr Mat Mat Turns Passed 1038 | 118 554 366 Spaces Moved 708 | 91 440 177 Core 15 | 15 . . Treads . | . . . Legs . | . . . Wheels 693 | 76 440 177 Hover . | . . . Flight . | . . . Fastest Speed 50 | 50 80 95 Average Speed 91 | 79 89 101 Slowest Speed 120 | 90 110 120 Overloaded Moves . | . . . Propulsion Burnouts . | . . . Robots Hopped . | . . . Cave-ins Triggered . | . . . Exploration Rate (%) 37 | 4 83 25 Regions Visited 2 Branch Regions . Pre-discovered Areas . | . . . Known Exits Taken 2 | 1 1 . Unknown Exits Taken . | . . . Scrap Searched . | . . . Spaces Dug . | . . . Terrain Destroyed . | . . . Melee . | . . . Projectile . | . . . AOE . | . . . Actions | -11 -10 -9 --------- Run | Scr Mat Mat Total 914 | 121 533 260 Wait 56 | 5 44 7 Move 704 | 90 437 177 Hop . | . . . Pick Up 15 | 8 3 4 Fast Attach 15 | 6 6 3 Attach 16 | . 4 12 Detach 2 | . 1 1 Swap 7 | . 6 1 Drop 3 | . 3 . Fire 91 | 12 29 50 Melee 5 | . . 5 Ram . | . . . Kick . | . . . Crush . | . . . Escape Stasis . | . . . Rewire . | . . . Trap . | . . . Miscellaneous . | . . . Route ------- -11/Scrapyard -10/Materials (discovered 2 exits: *Mat x2) -9/Materials History --------- Turn | Location | Event 7 | -11/Scrapyard | Identified exit to Materials 7 | -11/Scrapyard | Discovered exit to Materials (range 15) 119 | -11/Scrapyard | Entered Materials 119 | -10/Materials | Evolved 1 slot: Utility x1 210 | -10/Materials | Identified exit to Mines 210 | -10/Materials | Discovered exit to Mines (range 16) 318 | -10/Materials | Build established: Hacker-Mutant 321 | -10/Materials | Identified exit to Materials 321 | -10/Materials | Discovered exit to Materials (range 16) 482 | -10/Materials | Discovered exit to Materials (range 13) 557 | -10/Materials | Core integrity fell below 50% 579 | -10/Materials | Lost 4 parts (1p1n2w) 595 | -10/Materials | Discovered exit to Mines (range 15) 673 | -10/Materials | Entered another Materials area 673 | -9/Materials | Evolved 2 slots: Utility x2 879 | -9/Materials | Core integrity fell below 50% 908 | -9/Materials | Lost 6 parts (1p2n1u2w) 1022 | -9/Materials | Core integrity fell below 20% 1039 | -9/Materials | Destroyed by Lesser Abomination with Etherial Claws Last Messages --------------- 01016_ Overheating: Energy bleed (-1). 01016_ Particle Gun destroyed. 01017_ Lesser Abomination absorbs Ion Engine. 01018_ Lesser Abomination absorbs Weight Redist. System. 01022_ Lesser Abomination knocked back. 01023_ Lesser Abomination spits out Imp. Flight Unit. 01023_ Lesser Abomination absorbs Imp. Flight Unit. 01025_ Destroyed Lgt. Ion Engine. 01025_ Lesser Abomination system corrupted by crushing effect. 01025_ Lgt. Ion Engine destroyed. 01025_ Arm. Wheel destroyed. 01028_ Zapped by an electromagnetic arc from EM Anomaly. 01028_ Lesser Abomination absorbs Hammer. 01028_ Lesser Abomination knocked back. 01029_ Imp. Terrain Scanner destroyed. 01031_ Destroyed Flight Unit. 01031_ Lesser Abomination system corrupted by crushing effect. 01032_ Lesser Abomination absorbs Aluminum Leg. 01033_ Maul destroyed. 01038_ Sensor Array destroyed. Map ----- +----------------------------------------------------+ | ????????## # #! #???????????????????????? | | ?????????# #"##"#""#!=!#???????????????????????? | | ????????## #" "# %##??????????????????????? | | ????????# """"""" = #####??????????????????? | | ????????# [! T= ?????????????? | | ????????# [%! "" ???????????? | | ????????# =!*!% = ????????????? | | ???????## | #!#= ## ####### ????????????? | | ????####""#=""" # ####+####??????? ?????????????? | | ????#"""""=%##### # ? ???????????????????? | | ????? != # # """ ??# ???#??????????? | | ?????? = %# # """ ? # ??????????????? | | ????? """ """ !# # """ = # ?????????????? | | ??# """""""" =" # # ????????????? | | ??# """" ===# "% %?##?????????? | | ??# "= #"""""""########+###? ????????? | | #??############"" " "#! ??? ?"????? | | ????????# "" " """ ## ? ???????? | | #???????# "" "" %"% R" ## ??? ??"????? | | ??#????## ""S [" " """ ## ???#? ? ?? ?? | | ????????# "" "" " ## ?????#???????? | | ????????# ;" =" ## ? ???##?#????#? | | ????????# ;; ""#"#"##"#######??#??##???????? | | ?????##?#####+;;!% ;#########! #####?#???##?#?? | | ??????????# % % =A ## ####????????# | | ????#???#?# @ ###?##?####??#?? | | ????????#?###+;; ;######### #####?##???????? | | ???????## """"############+########?#?#?????? | | ??#?????# """ # # * ####??????? | | ????????# """ # """ """ [# ##?##??#??? | | ????????# """ # """ """ %# """"" "#????????? | | ????????# """ # """ """? # """"" "##?????#?? | | ????????# # """ """ # """"" "#???????#? | | ???????????##### # % "#????????? | | ???????????????# ? ??% # "#?#??????? | | ??????????###???####?#???################??#?????? | | | | | | | | | | | | | | | | | | | | | | | | | | | | | +----------------------------------------------------+ Best States ------------- Heat Dissipation 42 Energy Generation 14 Energy Capacity 280 Matter Stores 300 Matter Capacity 300 Sight Range 16 Robot Scan Range 10 Terrain Scan Range 16 Terrain Scan Density 60 Resistance: KI 35 Resistance: TH 35 Resistance: EX 35 Resistance: EM 35 Resistance: I 35 Resistance: S 35 Resistance: P 35 Weapon Shielding 33 Evasion (%) 44 Offensive Hacking 20 Item Schematics ----------------- Hcp. Storage Unit | -10/Materials | Hacked Hcp. Battery | -10/Materials | Hacked Lrg. Storage Unit | -10/Materials | Hacked Arm. Wheel | -9/Materials | Scanalyzed Imp. Terrain Scanner | -9/Materials | Scanalyzed Disposable Heat Sink | -9/Materials | Scanalyzed ECM Suite | -9/Materials | Scanalyzed Wheel | -9/Materials | Scanalyzed Com. Wheel | -9/Materials | Scanalyzed Lgt. Ion Engine | -9/Materials | Scanalyzed Heat Sink | -9/Materials | Scanalyzed Robot Schematics ------------------ O-16 Technician | -10/Materials | Hacked M-13 Machinist | -10/Materials | Hacked Fabricated ------------ Nothing Alien Tech Used ----------------- None Achievements -------------- None Challenges ------------ None Game ------ Seed FieldNodeSplitter Manual? 1 Play Time 00:31:07 Cumulative 480.4 hours Start 2020.05.23 @ 21:58:29 End 2020.05.23 @ 22:38:45 Sessions 1 Manual Loads 0 Difficulty Explorer Special Mode Halloween2019/Abominations Game No. 54 Rogue 3 Adventurer 3 Explorer 48 Win Type - Total 26 Types 20/3/2/1/0/0/0 Lore% 72 Gallery% 91 Achievement% 91 Wizard Run 0 Options --------- ASCII 0 Keyboard 1 Movement Vi Keybinds 1 Fullscreen 2 Font 24/Terminus Map View 76x50 Tactical HUD 1 Map Filters NONE Filters NONE Steam 1 RUN: 0ce16b85-9fbc-4244-bc90-a0f615f1370b